fUST/lending_fUST_20241119
["ID","MTS","AMOUNT","RATE_DAILY","PERIOD"]
[342567504,1731971442653,-1057.075244,0.00024651,7]
[342567506,1731971442662,-765.548955,0.00024651,7]
[342567508,1731971442672,-765.548955,0.00024651,7]
[342567510,1731971442681,-175.961081,0.00024651,7]
[342567512,1731971442691,-175.961081,0.00024651,7]
[342567514,1731971442700,-634.754391,0.00024651,7]
[342567516,1731971442709,-634.754391,0.00024651,7]
[342567518,1731971442719,-151.0,0.00024651,7]
[342567520,1731971442729,-571.49972,0.00024651,7]
[342567522,1731971442739,-571.49972,0.00024651,7]
[342567524,1731971442749,-626.784621,0.00024651,7]
[342567526,1731971442759,-626.784621,0.00024651,7]
[342567528,1731971442767,-151.0,0.00024651,7]
[342567530,1731971442777,-623.44471354,0.00024667,2]
[342567532,1731971442787,-304.30184141,0.00024673,2]
[342567534,1731971442796,-501.59412102,0.00024673,2]
[342567536,1731971442805,-500.0,0.00024673,2]
[342567538,1731971442815,-500.0,0.00024673,2]
[342567540,1731971442824,-159.67322126,0.00024673,2]
[342567542,1731971442833,-153.44556448,0.00024673,2]
[342567544,1731971442843,-500.0,0.00024673,2]
[342567547,1731971442852,-500.0,0.00024673,2]
[342567549,1731971442862,-500.0,0.00024673,2]
[342567551,1731971442874,-399.15,0.000247,2]
[342567553,1731971442883,-623.44471354,0.00024706,2]
[342567554,1731971442892,-623.44471354,0.00024745,2]
[342567557,1731971442902,-623.44471354,0.00024784,2]
[342567559,1731971442911,-500.0,0.00024786,2]
[342567561,1731971442921,-509.6,0.00024802,4]
[342567563,1731971442930,-623.44471354,0.00024822,2]
[342567565,1731971442939,-11998.86,0.00024843,2]
[342567567,1731971442948,-175.961081,0.00024843,7]
[342567568,1731971442958,-175.961081,0.00024843,7]
[342567571,1731971442968,-634.754391,0.00024843,7]
[342567573,1731971442978,-634.754391,0.00024843,7]
[342567575,1731971442987,-151.0,0.00024843,7]
[342567577,1731971442996,-571.49972,0.00024843,7]
[342567579,1731971443005,-571.49972,0.00024843,7]
[342567581,1731971443014,-623.44471354,0.00024861,2]
[342567583,1731971443024,-2500.0,0.00024891,3]
[342567585,1731971443033,-330.0,0.000249,2]
[342567587,1731971443042,-2500.0,0.000249,3]
[342567589,1731971443051,-154.32461,0.000249,7]
[342567591,1731971443060,-154.32461,0.000249,7]
[342567593,1731971443069,-387.87693,0.000249,7]
[342567594,1731971443078,-387.87693,0.000249,7]
[342567596,1731971443087,-3162.302482,0.000249,7]
[342567599,1731971443098,-3162.302482,0.000249,7]
[342567601,1731971443107,-623.44471354,0.000249,2]
[342567603,1731971443118,-151.0,0.000249,7]
[342567605,1731971443127,-518.23898089,0.00024923,2]
[342567607,1731971443137,-204.0,0.0002494,14]
[342567609,1731971443148,-500.0,0.00024973,2]
[342567622,1731971443262,-502.08455944,0.00024973,2]
[342567624,1731971443273,-500.67272822,0.00024973,2]
[342567626,1731971443282,-500.0,0.00024973,2]
[342567629,1731971443292,-381.88204628,0.00024973,2]
[342567631,1731971443302,-500.0,0.00024973,2]
[342567633,1731971443311,-500.0,0.00024973,2]
[342567635,1731971443321,-264.11127464,0.00024973,2]
[342567637,1731971443331,-500.0,0.00024973,2]
[342567639,1731971443341,-500.0,0.00024973,2]
[342567641,1731971443350,-500.0,0.00024973,2]
[342567643,1731971443360,-500.0,0.00024973,2]
[342567645,1731971443371,-150.03787933,0.00024973,2]
[342567647,1731971443381,-203.0552,0.00024973,7]
[342567649,1731971443391,-203.0552,0.00024973,7]
[342567651,1731971443401,-151.0,0.00024973,7]
[342567652,1731971443411,-1057.075244,0.00024973,7]
[342567654,1731971443420,-1057.075244,0.00024973,7]
[342567657,1731971443431,-765.548955,0.00024973,7]
[342567658,1731971443440,-765.548955,0.00024973,7]
[342567660,1731971443450,-626.784621,0.00024973,7]
[342567663,1731971443460,-626.784621,0.00024973,7]
[342567665,1731971443470,-163.07659107,0.00024999,2]
[342567667,1731971443479,-366.83742869,0.00024999,2]
[342567669,1731971443490,-3296.56,0.00025,14]
[342567671,1731971443500,-6065.09,0.00025,14]
[342567673,1731971443510,-16998.1494051,0.00025,2]
[342567675,1731971443520,-1253.58049668,0.00025,2]
[342567677,1731971443530,-1875452.21981262,0.00025,15]
[342567687,1731971443617,-2050.09766839,0.00025,15]
[342567689,1731971443631,-89460.24207611,0.00025,15]
[342567693,1731971443656,-500.0,0.00020128,2]
[342567694,1731971443665,-500.0,0.00020128,2]
[342567697,1731971443675,-860.05456268,0.00025,15]
[342567699,1731971443687,-314.74,0.00025,15]
[342567729,1731971443966,-279.497485,0.00020128,2]
[342567731,1731971443976,-500.0,0.00020128,2]
[342567733,1731971443985,-151.0,0.00021555,2]
[342567735,1731971443995,-151.0,0.00022651,7]
[342567737,1731971444005,-151.0,0.00023473,7]
[342567739,1731971444014,-314.85245682,0.000241,15]
[342567951,1731971446297,-7015.625,0.0002,2]
[342567953,1731971446307,-167.387114,0.00020132,2]
[342567955,1731971446317,-151.0,0.00024549,7]
[342567957,1731971446326,-151.0,0.00024569,7]
[342567959,1731971446336,-151.0,0.00024651,7]
[342567961,1731971446346,-500.0,0.00024673,2]
[342567963,1731971446355,-500.0,0.00024673,2]
[342567965,1731971446365,-184.88616208,0.00024673,2]
[342567967,1731971446380,-776.0,0.0002476,15]
[342567969,1731971446390,-151.0,0.000249,7]
[342567971,1731971446400,-26563.66480392,0.00025,15]
[342569510,1731972046230,161.570292,0.00013973,2]
[342569512,1731972120916,801.0,0.00025,120]
[342569513,1731972346219,-1035.89146886,0.00017932,2]
[342569514,1731972356142,-453.12634114,0.00017932,2]
[342569515,1731972356164,-193.9089319,0.00018069,2]
[342569516,1731972356186,-250.0,0.00018408,2]
[342569517,1731972356207,-575.3787644,0.0001881,2]
[342569518,1731972441132,-300.0,0.00017987,2]
[342569519,1731972441155,-300.0,0.00017987,2]
[342569520,1731972441178,-289.2066515,0.00017988,2]
[342569521,1731972444099,-302.5896538,0.00017988,2]
[342569522,1731972499981,401.22731839,0.000123,2]
[342569523,1731972501868,9261.51361761,0.000125,2]
[342569525,1731972516280,273.79106289,0.0001,2]
[342569528,1731972523539,20068.80100461,0.0001,2]
[342569532,1731972527452,1000.0,0.0001,2]
[342569534,1731972545123,-2299.93693271,0.000109,2]
[342569535,1731972546146,-1115.47406208,0.000109,2]
[342569536,1731972546169,-915.47215421,0.000125,2]
[342569537,1731972546190,-300.0,0.00013399,2]
[342569538,1731972546210,-300.0,0.00013399,2]
[342569539,1731972546230,-17630.18649233,0.000134,2]
[342569540,1731972546250,-171.16007024,0.00014014,2]
[342569541,1731972546271,-267.9364101,0.00014114,2]
[342569542,1731972546292,-420.0,0.00014688,2]
[342569543,1731972546314,-420.0,0.00014739,2]
[342569544,1731972546335,-562.02955283,0.000149,2]
[342569545,1731972546355,-436.14943866,0.00015,2]
[342569546,1731972546376,-2255.64081955,0.00015,2]
[342569550,1731972550194,-2102.81749822,0.00015,2]
[342569551,1731972550220,-587.0,0.00016102,2]
[342569552,1731972550242,-587.0,0.00016213,2]
[342569553,1731972550264,-152.0,0.00017308,2]
[342569554,1731972550286,-2017.38531753,0.000176,2]
[342569555,1731972550308,-823.0,0.00017651,2]
[342569556,1731972550342,-823.0,0.00017834,2]
[342569557,1731972550367,-476.1187991,0.00017932,2]
[342569558,1731972550390,-500.0,0.00017987,2]
[342569559,1731972550415,-500.0,0.00017987,2]
[342569560,1731972550438,-500.0,0.00017987,2]
[342569561,1731972550461,-500.0,0.00017987,2]
[342569562,1731972550485,-397.49304142,0.00017987,2]
[342569563,1731972550509,-24288.2036947,0.00017988,2]
[342569564,1731972550532,-378.19534579,0.00018,2]
[342569565,1731972550556,-534.6,0.00018261,2]
[342569566,1731972550580,-500.0,0.00018261,2]
[342569567,1731972550604,-500.0,0.00018261,2]
[342569568,1731972550627,-310.15,0.00018261,2]
[342569569,1731972550650,-500.0,0.00018535,2]
[342569570,1731972550675,-500.0,0.00018535,2]
[342569571,1731972550698,-621.40677391,0.00018809,2]
[342569572,1731972550720,-500.0,0.00018956,2]
[342569573,1731972550742,-500.0,0.00018956,2]
[342569574,1731972550764,-500.0,0.00018956,2]
[342569575,1731972550788,-500.0,0.00018956,2]
[342569576,1731972550816,-443.85,0.00018956,2]
[342569577,1731972550839,-500.0,0.00018956,2]
[342569578,1731972550862,-157.64,0.00018956,2]
[342569579,1731972550885,-384.36,0.00018956,2]
[342569580,1731972550913,-591.69,0.00018956,2]
[342569581,1731972550940,-500.0,0.00018956,2]
[342569582,1731972550962,-259.71,0.00018956,2]
[342569583,1731972550987,-500.0,0.00018956,2]
[342569584,1731972551011,-500.0,0.00018957,2]
[342569585,1731972551033,-500.0,0.00018957,2]
[342569586,1731972551055,-500.0,0.00018957,2]
[342569587,1731972551079,-263.22,0.00018957,2]
[342569588,1731972551102,-201.34,0.00018957,2]
[342569589,1731972551125,-500.0,0.00018957,2]
[342569590,1731972551149,-500.0,0.00018957,2]
[342569591,1731972551176,-500.0,0.00018957,2]
[342569592,1731972551200,-500.0,0.00018957,2]
[342569593,1731972551224,-500.0,0.00018957,2]
[342569594,1731972551248,-500.0,0.00018957,2]
[342569595,1731972551271,-500.0,0.00018957,2]
[342569596,1731972551293,-286.73,0.00018957,2]
[342569597,1731972551319,-500.0,0.00018957,2]
[342569598,1731972551344,-299.61,0.00018957,2]
[342569599,1731972551367,-500.0,0.00018957,2]
[342569600,1731972551392,-4499.58,0.00018957,2]
[342569601,1731972551416,-500.0,0.00018957,2]
[342569602,1731972551439,-500.0,0.00018957,2]
[342569603,1731972551462,-286.18909528,0.00018958,2]
[342569604,1731972551489,-174.286383,0.00019178,2]
[342569605,1731972551512,-501.77,0.0001923,2]
[342569606,1731972551535,-440.73,0.0001923,2]
[342569607,1731972551560,-500.0,0.0001923,2]
[342569608,1731972551584,-517.05,0.0001923,2]
[342569609,1731972551768,-547.04,0.0001923,2]
[342569610,1731972551793,-500.0,0.0001923,2]
[342569611,1731972551817,-363.39,0.0001923,2]
[342569612,1731972551841,-500.0,0.00019231,2]
[342569613,1731972551865,-279.3,0.00019231,2]
[342569614,1731972551888,-405.68,0.00019231,2]
[342569615,1731972551917,-500.0,0.00019231,2]
[342569616,1731972551942,-500.0,0.00019231,2]
[342569617,1731972551964,-271.14,0.00019231,2]
[342569618,1731972551988,-500.0,0.00019231,2]
[342569619,1731972552011,-500.0,0.00019231,2]
[342569620,1731972552032,-500.0,0.00019231,2]
[342569621,1731972552053,-500.0,0.00019231,2]
[342569622,1731972552077,-500.0,0.00019231,2]
[342569623,1731972552099,-358.55,0.00019231,2]
[342569624,1731972552121,-4499.58,0.00019231,2]
[342569625,1731972552143,-500.0,0.00019231,2]
[342569626,1731972552171,-500.0,0.00019231,2]
[342569627,1731972552195,-1152.0,0.00019349,2]
[342569628,1731972552218,-500.0,0.00019504,2]
[342569629,1731972552240,-500.0,0.00019504,2]
[342569630,1731972552263,-500.0,0.00019505,2]
[342569631,1731972552285,-350.1,0.00019505,2]
[342569632,1731972552312,-500.0,0.00019505,2]
[342569633,1731972552336,-500.0,0.00019505,2]
[342569634,1731972552359,-500.0,0.00019505,2]
[342569635,1731972552382,-500.0,0.00019505,2]
[342569636,1731972552403,-500.0,0.00019505,2]
[342569637,1731972552430,-500.0,0.00019505,2]
[342569638,1731972552453,-4499.58,0.00019505,2]
[342569639,1731972552476,-500.0,0.00019505,2]
[342569640,1731972552500,-500.0,0.00019505,2]
[342569641,1731972552522,-189.0,0.00019617,2]
[342569642,1731972552542,-500.0,0.00019673,2]
[342569643,1731972552564,-500.0,0.00019673,2]
[342569644,1731972552586,-500.0,0.00019682,2]
[342569645,1731972552608,-500.0,0.00019682,2]
[342569646,1731972552629,-500.0,0.00019682,2]
[342569647,1731972552653,-500.0,0.00019682,2]
[342569648,1731972552681,-500.0,0.00019682,2]
[342569649,1731972552705,-500.0,0.00019682,2]
[342569650,1731972552727,-188.49808353,0.00019682,2]
[342569651,1731972552750,-500.0,0.00019682,2]
[342569652,1731972552774,-500.0,0.00019682,2]
[342569653,1731972552797,-500.0,0.00019682,2]
[342569654,1731972552820,-500.0,0.00019682,2]
[342569655,1731972552841,-500.0,0.00019682,2]
[342569656,1731972552866,-500.0,0.00019682,2]
[342569657,1731972552889,-500.0,0.00019682,2]
[342569658,1731972552916,-500.0,0.00019682,2]
[342569659,1731972552938,-500.0,0.00019682,2]
[342569660,1731972552961,-500.0,0.00019682,2]
[342569661,1731972552986,-500.0,0.00019682,2]
[342569662,1731972553010,-500.0,0.00019682,2]
[342569663,1731972553032,-500.0,0.00019682,2]
[342569664,1731972553054,-500.0,0.00019682,2]
[342569665,1731972553077,-500.0,0.00019682,2]
[342569666,1731972553101,-500.0,0.00019682,2]
[342569667,1731972553124,-500.0,0.00019682,2]
[342569668,1731972553147,-500.0,0.00019682,2]
[342569669,1731972553174,-500.0,0.00019682,2]
[342569670,1731972553197,-500.0,0.00019682,2]
[342569671,1731972553220,-500.0,0.00019682,2]
[342569672,1731972553243,-500.0,0.00019682,2]
[342569673,1731972553265,-500.0,0.00019682,2]
[342569674,1731972553288,-500.0,0.00019682,2]
[342569675,1731972553310,-500.0,0.00019682,2]
[342569676,1731972553333,-500.0,0.00019682,2]
[342569677,1731972553357,-500.0,0.00019682,2]
[342569678,1731972553380,-598.42388957,0.00019682,2]
[342569679,1731972553405,-500.0,0.00019682,2]
[342569680,1731972553431,-500.0,0.00019682,2]
[342569681,1731972553453,-500.0,0.00019682,2]
[342569682,1731972553477,-400.0,0.00019682,2]
[342569683,1731972553500,-500.0,0.00019682,2]
[342569684,1731972553523,-500.0,0.00019682,2]
[342569685,1731972553547,-500.0,0.00019682,2]
[342569686,1731972553569,-500.0,0.00019682,2]
[342569687,1731972553592,-500.0,0.00019682,2]
[342569688,1731972553616,-500.0,0.00019682,2]
[342569689,1731972553639,-500.0,0.00019682,2]
[342569690,1731972553663,-500.0,0.00019682,2]
[342569691,1731972553686,-500.0,0.00019682,2]
[342569692,1731972553709,-500.0,0.00019682,2]
[342569693,1731972553734,-500.0,0.00019682,2]
[342569694,1731972553756,-500.0,0.00019682,2]
[342569695,1731972553779,-500.0,0.00019682,2]
[342569696,1731972553802,-500.0,0.00019682,2]
[342569697,1731972553829,-500.0,0.00019682,2]
[342569698,1731972553852,-500.0,0.00019682,2]
[342569699,1731972553876,-500.0,0.00019682,2]
[342569700,1731972553900,-500.0,0.00019682,2]
[342569701,1731972553931,-500.0,0.00019682,2]
[342569702,1731972553953,-500.0,0.00019682,2]
[342569703,1731972553978,-500.0,0.00019682,2]
[342569704,1731972554001,-538.12412682,0.00019682,2]
[342569705,1731972554025,-500.0,0.00019682,2]
[342569706,1731972554050,-500.0,0.00019682,2]
[342569707,1731972554074,-500.0,0.00019682,2]
[342569708,1731972554097,-500.0,0.00019682,2]
[342569709,1731972554119,-500.0,0.00019682,2]
[342569710,1731972554144,-500.0,0.00019682,2]
[342569711,1731972554169,-500.0,0.00019682,2]
[342569712,1731972554192,-500.0,0.00019682,2]
[342569713,1731972554216,-500.0,0.00019682,2]
[342569714,1731972554241,-500.0,0.00019682,2]
[342569715,1731972554264,-500.0,0.00019682,2]
[342569716,1731972554287,-500.0,0.00019682,2]
[342569717,1731972554313,-500.0,0.00019682,2]
[342569718,1731972554337,-500.0,0.00019682,2]
[342569719,1731972554359,-134.78462308,0.00019682,2]
[342569720,1731972554695,-500.0,0.00017987,2]
[342569721,1731972560115,-528.05,0.00018261,2]
[342569724,1731972592507,500.0,0.00017987,2]
[342569725,1731972592768,500.0,0.00018261,2]
[342569726,1731972593028,500.0,0.00018535,2]
[342569727,1731972593281,500.0,0.00018809,2]
[342569728,1731972593543,286.69715239,0.00019083,2]
[342569731,1731972601688,192.0,0.00017698,2]
[342569732,1731972603622,503.67,0.00017987,2]
[342569733,1731972628061,500.0,0.00017987,2]
[342569839,1731972632936,-180.0,0.00018096,2]
[342569841,1731972632947,-213.30284761,0.00019083,2]
[342569843,1731972632957,-240.60423038,0.00019357,2]
[342569845,1731972632971,-259.39576962,0.00019357,2]
[342569847,1731972632981,-297.4694468,0.00019631,2]
[342569849,1731972632994,-202.5305532,0.00019631,2]
[342569851,1731972633005,-500.0,0.00019673,2]
[342569854,1731972633016,-500.0,0.00019673,2]
[342569856,1731972633026,-300.0,0.00019681,2]
[342569858,1731972633036,-267.3,0.00019701,2]
[342569860,1731972633046,-500.0,0.00019778,2]
[342569862,1731972633057,-500.0,0.00019779,2]
[342569864,1731972633067,-1075.96077733,0.00019779,2]
[342569866,1731972633080,-335.5000105,0.00019779,2]
[342569869,1731972633097,-1642.67919877,0.00019779,2]
[342569871,1731972633111,-1445.4400134,0.00019779,2]
[342569873,1731972633121,-500.44331335,0.00019807,2]
[342569875,1731972633131,-500.09084464,0.00019807,2]
[342569877,1731972633141,-577.05215995,0.00019807,2]
[342569879,1731972633151,-200.92006502,0.00019807,2]
[342569881,1731972633163,-515.53446826,0.00019807,2]
[342569883,1731972633173,-521.22092098,0.00019807,2]
[342569886,1731972633183,-543.38935268,0.00019807,2]
[342569888,1731972633193,-999.999999,0.00019852,2]
[342569890,1731972633202,-426.46536289,0.000199,2]
[342569892,1731972633213,-426.46536289,0.000199,2]
[342569894,1731972633225,-426.46536289,0.000199,2]
[342569896,1731972633236,-500.0,0.00019905,2]
[342569898,1731972633245,-7015.625,0.0002,2]
[342569900,1731972633255,-550.000001,0.0002,2]
[342569902,1731972633266,-500.98938007,0.0002,2]
[342569904,1731972633277,-172.96,0.00020052,2]
[342569906,1731972633287,-500.0,0.00020053,2]
[342569908,1731972633297,-4499.58,0.00020053,2]
[342569910,1731972633307,-258.31775591,0.00020057,2]
[342569912,1731972633317,-164.450404,0.00020132,2]
[342569914,1731972633327,-164.450404,0.00020132,2]
[342569916,1731972633338,-500.0,0.00020179,2]
[342569918,1731972633348,-598.89,0.00020327,2]
[342569920,1731972633358,-4499.58,0.00020327,2]
[342569923,1731972633369,-500.0,0.00020453,2]
[342569925,1731972633379,-267.3,0.0002056,2]
[342569943,1731972633555,-4499.58,0.00020601,2]
[342569945,1731972633567,-500.0,0.00020727,2]
[342569947,1731972633578,-4499.58,0.00020875,2]
[342569950,1731972633589,-500.0,0.00021001,2]
[342569952,1731972633599,-164.450404,0.00021007,2]
[342569954,1731972633608,-164.450404,0.00021007,2]
[342569956,1731972633619,-1000.0,0.00021042,2]
[342569958,1731972633629,-1000.0,0.00021042,2]
[342569960,1731972633638,-1000.0,0.00021042,2]
[342569962,1731972633648,-4499.58,0.00021149,2]
[342569964,1731972633659,-161.36,0.00021275,2]
[342569966,1731972633668,-267.3,0.00021418,2]
[342569968,1731972633678,-4499.58,0.00021423,2]
[342569970,1731972633687,-420.0,0.00021437,2]
[342569972,1731972633697,-164.450404,0.00021555,2]
[342569974,1731972633707,-164.450404,0.00021555,2]
[342569976,1731972633720,-4499.58,0.00021697,2]
[342569978,1731972633730,-723.18577235,0.00021817,2]
[342569980,1731972633741,-960.31,0.00021907,3]
[342569982,1731972633751,-480.15,0.00021907,3]
[342569984,1731972633760,-240.08,0.00021907,3]
[342569986,1731972633770,-240.08,0.00021907,3]
[342569988,1731972633780,-5000.0,0.00021917,2]
[342569990,1731972633790,-5000.0,0.00021917,2]
[342569992,1731972633800,-5000.0,0.00021917,2]
[342569994,1731972633810,-5000.0,0.00021917,2]
[342569996,1731972633819,-5000.0,0.00021917,2]
[342569998,1731972633830,-5000.0,0.00021917,2]
[342570000,1731972633840,-5000.0,0.00021917,2]
[342570002,1731972633850,-5000.0,0.00021917,2]
[342570004,1731972633859,-5000.0,0.00021917,2]
[342570006,1731972633870,-5000.0,0.00021917,2]
[342570008,1731972633880,-5000.0,0.00021917,2]
[342570010,1731972633891,-4063.39421636,0.00021917,2]
[342570012,1731972633902,-4499.58,0.00021971,2]
[342570014,1731972633911,-500.0,0.00021973,2]
[342570016,1731972633921,-500.0,0.00021973,2]
[342570018,1731972633933,-500.0,0.00021973,2]
[342570020,1731972633945,-500.0,0.00021973,2]
[342570022,1731972633955,-500.0,0.00021973,2]
[342570024,1731972633964,-500.0,0.00021973,2]
[342570026,1731972633976,-500.0,0.00021973,2]
[342570028,1731972633986,-500.0,0.00021973,2]
[342570030,1731972633997,-500.0,0.00021973,2]
[342570032,1731972634008,-370.65278008,0.00021973,2]
[342570034,1731972634018,-500.0,0.00021973,2]
[342570036,1731972634028,-500.0,0.00021973,2]
[342570039,1731972634039,-500.0,0.00021973,2]
[342570041,1731972634049,-500.0,0.00021973,2]
[342570043,1731972634059,-508.85506187,0.00021973,2]
[342570045,1731972634070,-160.65738735,0.00022,10]
[342570047,1731972634081,-160.0,0.00022,2]
[342570049,1731972634091,-4499.58,0.00022245,2]
[342570051,1731972634101,-267.3,0.00022277,3]
[342570053,1731972634112,-4499.58,0.00022519,2]
[342570055,1731972634122,-723.18577234,0.00022588,2]
[342570057,1731972634132,-164.450404,0.00022651,7]
[342570059,1731972634143,-164.450404,0.00022651,7]
[342570061,1731972634153,-4499.58,0.00022793,2]
[342570063,1731972634164,-4499.58,0.00023067,2]
[342570065,1731972634175,-153.0,0.00023096,2]
[342570067,1731972634185,-153.0,0.00023096,2]
[342570069,1731972634195,-153.0,0.00023096,2]
[342570071,1731972634204,-267.3,0.00023136,3]
[342570073,1731972634214,-1920.62,0.00023277,3]
[342570075,1731972634226,-960.3,0.00023277,3]
[342570077,1731972634235,-480.16,0.00023277,3]
[342570079,1731972634245,-480.16,0.00023277,3]
[342570081,1731972634254,-261.58927836,0.0002334,2]
[342570083,1731972634264,-285.68968518,0.0002334,2]
[342570085,1731972634273,-294.6489555,0.0002334,2]
[342570087,1731972634283,-4499.58,0.00023341,2]
[342570089,1731972634293,-164.450404,0.00023342,7]
[342570091,1731972634303,-164.450404,0.00023342,7]
[342570093,1731972634312,-503.83372182,0.00023342,2]
[342570095,1731972634322,-1000.0,0.00023342,2]
[342570097,1731972634332,-1000.0,0.00023342,2]
[342570099,1731972634341,-881.77009908,0.00023342,2]
[342570102,1731972634355,-118.22990092,0.00023342,2]
[342570104,1731972634365,-509.733064,0.00023342,2]
[342570106,1731972634375,-1000.0,0.00023342,2]
[342570108,1731972634384,-1000.0,0.00023342,2]
[342570110,1731972634394,-1000.0,0.00023342,2]
[342570112,1731972634403,-1000.0,0.00023342,2]
[342570114,1731972634413,-1000.0,0.00023342,2]
[342570116,1731972634424,-1000.0,0.00023342,2]
[342570118,1731972634434,-1000.0,0.00023342,2]
[342570120,1731972634444,-872.03703508,0.00023342,2]
[342570522,1731972638482,-500.0,0.00021274,2]
[342570524,1731972638492,-500.0,0.00021274,2]
[342570526,1731972638502,-500.0,0.00021274,2]
[342570528,1731972638511,-500.0,0.00021274,2]
[342570530,1731972638522,-500.0,0.00021274,2]
[342570532,1731972638532,-500.0,0.00021274,2]
[342570534,1731972638541,-500.0,0.00021274,2]
[342570536,1731972638551,-500.0,0.00021274,2]
[342570538,1731972638560,-500.0,0.00021274,2]
[342570540,1731972638570,-500.0,0.00021274,2]
[342570542,1731972638580,-24.93408933,0.00021274,2]
[342570544,1731972638592,-475.06591067,0.00021274,2]
[342570546,1731972638602,-500.0,0.00021274,2]
[342570548,1731972638611,-500.0,0.00021274,2]
[342570550,1731972638621,-500.0,0.00021274,2]
[342570552,1731972638632,-500.0,0.00021274,2]
[342570555,1731972638642,-500.0,0.00021274,2]
[342570557,1731972638651,-282.5062519,0.00021274,2]
[342570559,1731972638660,-500.0,0.00021274,2]
[342570561,1731972638671,-500.0,0.00021274,2]
[342570563,1731972638681,-500.0,0.00021274,2]
[342570565,1731972638690,-500.0,0.00021274,2]
[342570567,1731972638700,-609.84238896,0.00021274,2]
[342570569,1731972638709,-500.0,0.00021274,2]
[342570571,1731972638720,-500.0,0.00021274,2]
[342570573,1731972638729,-500.0,0.00021274,2]
[342570575,1731972638738,-500.0,0.00021274,2]
[342570577,1731972638747,-500.0,0.00021274,2]
[342570579,1731972638756,-500.0,0.00021274,2]
[342570581,1731972638766,-500.0,0.00021274,2]
[342570583,1731972638775,-500.0,0.00021274,2]
[342570585,1731972638784,-500.0,0.00021274,2]
[342570587,1731972638794,-303.25100991,0.00021274,2]
[342570589,1731972638803,-500.0,0.00021274,2]
[342570591,1731972638812,-500.0,0.00021274,2]
[342570593,1731972638821,-500.0,0.00021274,2]
[342570595,1731972638830,-500.0,0.00021274,2]
[342570597,1731972638840,-500.0,0.00021274,2]
[342570599,1731972638850,-500.0,0.00021274,2]
[342570601,1731972638859,-500.0,0.00021274,2]
[342570603,1731972638868,-500.0,0.00021274,2]
[342570605,1731972638878,-500.0,0.00021274,2]
[342570607,1731972638888,-127.96296492,0.00023342,2]
[342570608,1731972638897,-587.0,0.00023351,2]
[342570611,1731972638906,-723.18577234,0.00023359,2]
[342570613,1731972638917,-210.2902007,0.0002337,2]
[342570614,1731972638927,-1500.0,0.00023547,2]
[342570617,1731972638940,-1500.0,0.00023547,2]
[342570619,1731972638951,-1500.0,0.00023547,2]
[342570621,1731972638960,-150.112233,0.000236,10]
[342570623,1731972638972,-3935.64986406,0.00023615,2]
[342570717,1731972640047,-364.22910212,0.00023615,2]
[342570719,1731972640059,-199.70103382,0.00023615,2]
[342570721,1731972640070,-500.0,0.0002375,2]
[342570723,1731972640079,-1607.68326501,0.00023889,2]
[342570760,1731972640415,-2891.89673499,0.00023889,2]
[342570762,1731972640426,-47.50325693,0.00023995,4]